bitfinex-derivatives/quotes_ETHF0:USTF0_20241228
["timestamp","ask_amount","ask_price","bid_price","bid_amount"]
[1735374595004,0.29981,3340.9,3340.8,1.17901]
[1735374599916,0.29981,3340.9,3340.8,0.29981]
[1735374600103,6.19126493,3340.9,3340.8,0.29981]
[1735374601608,0.29981,3340.9,3340.8,0.29981]
[1735374605710,0.906,3341.1,3340.7,0.75391194]
[1735374605904,0.906,3341.1,3341.0,0.2998]
[1735374605905,1.2058,3341.1,3341.0,0.2998]
[1735374606107,1.2058,3341.1,3341.0,1.05371194]
[1735374607110,0.74179,3341.1,3341.0,1.05371194]
[1735374608408,0.29979,3341.2,3341.1,0.29979]
[1735374608611,0.29979,3341.2,3341.1,0.75319]
[1735374608911,0.29979,3341.2,3341.1,1.21009]
[1735374610403,6.19725646,3341.2,3341.1,1.21009]
[1735374611516,6.19725646,3341.2,3341.1,0.9103]
[1735374612513,0.29979,3341.2,3341.1,0.9103]
[1735374613414,3.2078,3341.2,3340.7,4.71364334]
[1735374613614,0.29982,3340.9,3340.8,0.29982]
[1735374614510,3.2078,3341.2,3340.8,0.75391194]
[1735374614712,0.29979,3341.1,3341.0,0.2998]
[1735374614911,3.2078,3341.2,3340.8,0.75391194]
[1735374614912,0.2998,3341.0,3340.9,0.7691]
[1735374615114,0.2998,3341.0,3340.9,1.2275]
[1735374615917,6.1992114,3341.1,3341.0,0.2998]
[1735374616212,6.1992114,3341.1,3341.0,0.7548]
[1735374618817,5.8994114,3341.1,3341.0,1.50871194]
[1735374620619,4.71827903,3341.2,3341.1,0.29979]
[1735374620817,4.71827903,3341.2,3341.1,1.05370194]
[1735374624228,4.71827903,3341.3,3341.1,0.75391194]
[1735374624416,4.71827903,3341.3,3341.2,0.29978]
[1735374626421,5.01804903,3341.3,3341.2,0.29978]
[1735374626615,4.71827903,3341.3,3341.2,0.29978]
[1735374626824,0.29977,3341.3,3341.2,0.29978]
[1735374627412,0.4253,3341.5,3341.1,0.75391194]
[1735374627613,0.29977,3341.4,3341.3,0.29977]
[1735374628221,7.03682946,3341.4,3341.1,0.75391194]
[1735374628420,7.03682946,3341.4,3341.3,1.05368194]
[1735374629221,7.33658946,3341.4,3341.3,1.05368194]
[1735374629823,7.03682946,3341.4,3341.3,1.05368194]
[1735374630029,7.76188946,3341.5,3341.4,0.29976]
[1735374631122,7.76188946,3341.5,3341.4,0.76946]
[1735374632025,0.72506,3341.5,3341.4,0.76946]
[1735374632227,0.72506,3341.5,3341.3,0.75391194]
[1735374632228,0.29978,3341.3,3341.2,0.29978]
[1735374632428,0.29979,3341.1,3341.0,0.455]
[1735374632630,0.29981,3340.9,3340.8,3.96171194]
[1735374632822,0.29981,3340.9,3340.8,3.2078]
[1735374634840,5.01469643,3340.9,3340.8,4.26153194]
[1735374635031,4.71488643,3340.9,3340.8,4.26153194]
[1735374635425,5.01469643,3340.9,3340.8,3.96171194]
[1735374635726,5.01469643,3340.9,3340.8,0.75391194]
[1735374635924,5.01469643,3340.9,3340.8,1.05373194]
[1735374636116,5.01469643,3340.9,3340.8,0.75391194]
[1735374637227,0.29981,3340.9,3340.8,1.05373194]
[1735374637727,0.29981,3340.9,3340.8,0.75391194]
[1735374639535,0.29981,3340.9,3340.8,1.05373194]
[1735374641337,0.29981,3340.9,3340.8,0.75391194]
[1735374642237,0.29981,3340.9,3340.8,1.05373194]
[1735374642528,0.29981,3340.9,3340.8,0.75391194]
[1735374643033,0.29981,3340.9,3340.8,1.05373194]
[1735374648533,0.75841,3341.0,3340.9,0.29981]
[1735374651235,0.29981,3340.9,3340.8,1.05372194]
[1735374653440,0.4586,3341.0,3340.8,0.75391194]
[1735374653634,0.7584,3341.0,3340.9,0.29981]
[1735374653932,0.7584,3341.0,3340.9,1.19651]
[1735374654438,0.4586,3341.0,3340.9,1.19651]
[1735374655027,3.2078,3341.2,3341.1,0.29979]
[1735374656732,3.50758,3341.2,3341.1,0.29979]
[1735374658040,9.39961494,3341.2,3341.1,0.29979]
[1735374661341,0.29979,3341.1,3341.0,0.4556]
[1735374661544,1.18031194,3341.1,3340.5,4.943]
[1735374661743,0.29984,3340.6,3340.5,4.943]
[1735374663238,0.73454,3340.6,3340.5,4.943]
[1735374663842,0.8794,3340.6,3340.4,4.26156194]
[1735374664043,0.29985,3340.5,3340.4,4.26156194]
[1735374665049,1.17925,3340.6,3340.5,0.29985]
[1735374665446,7.07058113,3340.6,3340.5,0.29985]
[1735374667954,6.77073113,3340.6,3340.4,0.75391194]
[1735374668359,0.29985,3340.5,3340.4,1.05376194]
[1735374668556,6.77073113,3340.6,3340.4,0.75391194]
[1735374668753,6.77073113,3340.6,3340.5,0.29985]
[1735374668754,5.89133113,3340.6,3340.5,0.29985]
[1735374670172,5.89133113,3340.7,3340.6,0.29984]
[1735374670478,5.89133113,3340.7,3340.6,1.05375194]
[1735374671758,4.71283802,3340.7,3340.6,1.05375194]
[1735374672861,3.2078,3341.2,3340.9,0.29981]
[1735374672862,3.53475945,3341.0,3340.9,0.29981]
[1735374673058,3.53475945,3341.0,3340.9,1.05372194]
[1735374676083,3.53475945,3341.1,3341.0,0.2998]
[1735374676372,3.53475945,3341.1,3341.0,4.26151194]
[1735374677963,3.53475945,3341.3,3341.2,0.29978]
[1735374678163,3.53475945,3341.3,3341.2,1.05369194]
[1735374679168,4.71283802,3341.3,3341.2,1.05369194]
[1735374682772,4.71283802,3341.4,3341.3,0.29977]
[1735374683070,4.71283802,3341.4,3341.3,1.18867]
[1735374684273,3.53142121,3341.6,3341.5,0.29976]
[1735374684466,3.53142121,3341.6,3341.5,4.26147194]
[1735374685567,3.53142121,3341.7,3341.6,0.29975]
[1735374685765,3.53142121,3341.7,3341.6,1.05366194]
[1735374686971,3.6697,3342.1,3341.6,0.75391194]
[1735374687172,3.6697,3342.1,3342.0,1.05362194]
[1735374687978,0.4619,3342.1,3342.0,1.05362194]
[1735374688267,3.53142121,3342.2,3342.1,0.2997]
[1735374688462,3.53142121,3342.2,3342.1,0.735]
[1735374689371,4.29891121,3342.3,3342.1,0.735]
[1735374689871,4.29891121,3342.3,3342.1,0.4353]
[1735374690077,4.29891121,3342.3,3342.2,0.29969]
[1735374690571,3.99922121,3342.3,3342.2,0.29969]
[1735374691073,0.76748,3342.3,3342.2,0.29969]
[1735374691575,0.4678,3342.3,3342.1,0.4353]
[1735374691873,0.76749,3342.3,3342.2,0.29969]
[1735374692268,1.22171194,3342.3,3341.6,4.943]
[1735374692470,0.29974,3341.7,3341.6,4.943]
[1735374692707,1.05365194,3341.7,3341.6,4.943]
[1735374692874,4.26145194,3341.7,3341.6,4.943]
[1735374693675,3.50754,3341.7,3341.6,4.943]
[1735374693873,3.2078,3341.7,3341.3,0.29977]
[1735374694072,0.29976,3341.4,3341.3,0.29977]
[1735374694682,3.2078,3341.7,3341.0,0.4335]
[1735374694888,0.427,3341.3,3341.0,0.4335]
[1735374695179,0.8967,3341.2,3341.1,0.29979]
[1735374695777,0.29981,3340.9,3340.7,0.29982]
[1735374695980,0.427,3340.8,3340.6,3.2078]
[1735374696178,0.29983,3340.7,3340.6,3.2078]
[1735374696678,0.29983,3340.7,3340.5,0.29984]
[1735374696980,0.4375,3340.6,3340.5,0.29984]
[1735374697194,0.4375,3340.6,3340.2,0.29987]
[1735374697195,0.29986,3340.4,3340.2,0.29987]
[1735374697678,0.4311,3340.3,3340.2,0.29987]
[1735374697871,0.4311,3340.3,3340.2,1.892739]
[1735374706981,0.4311,3340.3,3340.2,1.592869]
[1735374707178,0.73097,3340.3,3340.0,0.29989]
[1735374707378,0.73097,3340.3,3340.1,0.29988]
[1735374707583,0.4311,3340.3,3340.2,0.29987]
[1735374709200,0.4311,3340.3,3340.2,1.892739]
[1735374717105,0.73096,3340.3,3340.2,1.592869]
[1735374717897,0.4311,3340.3,3340.2,0.29987]
[1735374718600,0.4375,3340.6,3340.0,1.592869]
[1735374718795,0.4375,3340.6,3340.5,0.29985]
[1735374719097,0.73973,3340.7,3340.6,0.29984]
[1735374721492,0.29985,3340.6,3340.5,0.29984]
[1735374721997,0.29985,3340.5,3340.4,1.21595]
[1735374724000,0.29984,3340.6,3340.5,0.29984]
[1735374724204,0.73974,3340.7,3340.6,0.29984]
[1735374724806,0.4399,3340.7,3340.6,0.29984]
[1735374725103,0.73973,3340.7,3340.6,0.29984]
[1735374726992,0.73973,3340.7,3340.4,0.9161]
[1735374727195,0.29985,3340.5,3340.4,1.21595]
[1735374728003,0.29984,3340.6,3340.5,0.29984]
[1735374728512,0.4399,3340.7,3340.0,1.592869]
[1735374728699,0.29987,3340.3,3340.2,0.29986]
[1735374730109,0.4638,3340.6,3340.0,2.474669]
[1735374730306,0.29986,3340.4,3340.3,0.29986]
[1735374730694,0.29985,3340.5,3340.4,0.29985]
[1735374730900,0.73973,3340.7,3340.6,0.29984]
[1735374731207,0.4399,3340.7,3340.6,0.29984]
[1735374731904,0.29985,3340.6,3340.5,0.29984]
[1735374732107,0.29985,3340.5,3340.4,0.74635]
[1735374734009,0.29984,3340.6,3340.5,0.29984]
[1735374734309,0.29984,3340.6,3340.5,0.76534]
[1735374734713,0.73973,3340.7,3340.6,0.29984]
[1735374735006,4.26559524,3340.7,3340.6,0.29984]
[1735374737812,0.73973,3340.7,3340.6,0.29984]
[1735374738013,0.4399,3340.7,3340.5,0.4655]
[1735374738213,0.29984,3340.6,3340.5,0.76534]
[1735374738908,0.4399,3340.7,3340.4,0.4465]
[1735374739115,0.29987,3340.2,3340.1,3.2078]
[1735374739614,0.29987,3340.2,3340.1,3.50768]
[1735374740512,0.29987,3340.2,3340.1,3.2078]
[1735374740717,0.74427,3340.2,3340.1,3.2078]
[1735374740905,1.21497,3340.2,3340.1,3.2078]
[1735374741312,5.89133113,3340.3,3340.1,3.2078]
[1735374741615,5.89133113,3340.2,3340.1,3.50768]
[1735374742712,4.72010447,3340.2,3340.1,3.50768]
[1735374744010,3.54014953,3340.2,3340.1,9.16041164]
[1735374745116,3.54014953,3340.2,3340.1,18.8124717]
[1735374745313,2.83374953,3340.2,3340.1,23.8124717]
[1735374745515,0.00274953,3340.2,3340.1,23.8124717]
[1735374745711,4.72010447,3340.3,3340.2,0.29987]
[1735374746011,4.01370447,3340.3,3340.2,5.24287]
[1735374746217,2.82800447,3340.3,3340.2,10.24287]
[1735374746420,2.82800447,3340.8,3340.7,0.29983]
[1735374746718,2.82800447,3340.8,3340.7,1.892699]
[1735374747848,3.2078,3340.9,3340.8,0.29982]
[1735374751022,3.2078,3341.2,3340.8,0.29982]
[1735374751324,3.2078,3341.2,3341.1,0.29979]
[1735374753623,0.4292,3341.4,3341.3,0.29977]
[1735374753825,6.33023113,3341.6,3341.1,1.592869]
[1735374754126,6.33023113,3341.6,3341.5,0.29976]
[1735374754925,0.4389,3341.6,3341.5,0.29976]
[1735374758325,0.4436,3341.8,3341.4,5.970669]
[1735374758528,0.4377,3342.1,3342.0,0.29971]
[1735374780449,0.7374,3342.1,3342.0,0.29971]
[1735374780643,0.4377,3342.1,3341.8,3.2078]
[1735374780965,0.29975,3341.6,3341.5,5.24275]
[1735374781149,0.29976,3341.5,3341.4,0.29976]
[1735374781353,0.72506,3341.5,3341.4,0.29976]
[1735374781853,0.29976,3341.4,3341.3,0.29977]
[1735374782349,0.4253,3341.5,3341.4,0.29976]
[1735374782752,0.72506,3341.5,3341.4,0.29976]
[1735374785256,0.4253,3341.5,3341.4,0.29976]
[1735374788557,0.4253,3341.5,3341.1,40.8]
[1735374788752,0.72506,3341.5,3341.3,0.29977]
[1735374789755,0.72506,3341.5,3341.1,40.8]
[1735374789956,0.72506,3341.5,3341.4,0.29976]
[1735374790458,0.29981,3340.9,3340.8,3.2078]
[1735374792157,0.29981,3340.9,3340.8,3.50762]
[1735374792355,0.29983,3340.7,3340.6,40.8]
[1735374792856,0.29983,3340.7,3340.6,41.09984]
[1735374796259,0.29983,3340.7,3340.6,40.8]
[1735374796763,0.29983,3340.7,3340.6,41.09984]
[1735374801564,0.29983,3340.7,3340.6,40.8]
[1735374802757,0.29983,3340.7,3340.6,41.09984]
[1735374806368,0.29983,3340.7,3340.6,40.8]
[1735374810465,0.29985,3340.4,3340.3,3.2078]
[1735374810662,0.29987,3340.3,3340.2,0.29987]
[1735374811573,0.29987,3340.2,3340.1,41.09987]
[1735374812361,0.29987,3340.2,3340.1,40.8]
[1735374813474,0.8897,3340.4,3339.8,3.2078]
[1735374813671,0.8897,3340.4,3339.8,3.5077]
[1735374813672,0.2999,3339.9,3339.8,3.5077]
[1735374813874,0.4341,3340.1,3339.8,3.2078]
[1735374814070,0.29988,3340.2,3340.1,0.29988]
[1735374815869,0.29989,3340.1,3339.8,44.0078]
[1735374816277,0.2999,3339.9,3339.8,44.0078]
[1735374817072,1.2217,3339.9,3339.8,44.0078]
[1735374817373,1.2217,3339.9,3339.8,44.30771]
[1735374817581,1.2217,3339.9,3339.8,44.0078]
[1735374817876,1.2217,3339.9,3339.8,44.30771]
[1735374819873,0.9218,3339.9,3339.8,44.30771]
[1735374820074,0.9218,3339.9,3339.8,44.0078]
[1735374820372,1.2217,3339.9,3339.8,44.30771]
[1735374820564,0.9218,3339.9,3339.8,44.30771]
[1735374821377,1.2217,3339.9,3339.8,44.30771]
[1735374821771,1.2217,3339.9,3339.8,45.06227058]
[1735374822270,1.2217,3339.9,3339.8,44.76236058]
[1735374822475,1.2217,3339.9,3339.8,41.55456058]
[1735374822670,1.2217,3339.9,3339.8,40.8]
[1735374822976,1.67636058,3339.9,3339.4,0.29994]
[1735374823180,0.75456058,3339.7,3339.5,0.29993]
[1735374823473,0.29993,3339.6,3339.5,41.09993]
[1735374823668,0.73173,3339.6,3339.5,41.09993]
[1735374823869,0.73173,3339.6,3339.5,0.29993]
[1735374824570,0.4318,3339.6,3339.5,0.29993]
[1735374838680,0.29994,3339.5,3339.4,0.29994]
[1735374839078,0.4318,3339.6,3339.3,44.4447]
[1735374839280,0.76654,3339.4,3339.3,3.50775]
[1735374839985,0.76654,3339.4,3339.3,3.2078]
[1735374841098,0.29997,3339.1,3339.0,0.29997]
[1735374841289,0.29997,3339.2,3339.1,0.29997]
[1735374841599,0.29997,3339.2,3339.1,41.09997]
[1735374841789,0.73607,3339.2,3339.1,41.09997]
[1735374842385,0.73607,3339.2,3339.1,40.8]
[1735374842584,0.29999,3338.9,3338.8,0.42106861]
[1735374842789,0.3,3338.8,3338.7,4.70292642]
[1735374842992,0.3,3338.8,3338.7,5.00293642]
[1735374842993,0.4361,3338.8,3338.7,5.00293642]
[1735374843494,0.4361,3338.8,3338.7,0.30001]
[1735374843891,0.4387,3338.9,3338.5,40.8]
[1735374844085,0.4387,3338.9,3338.8,0.3]
[1735374844389,0.425,3339.2,3339.1,0.29997]
[1735374844596,0.8637,3339.2,3339.1,0.29997]
[1735374845282,0.4512,3339.3,3338.8,2.47224301]
[1735374845486,4.69141112,3339.4,3339.3,0.29995]
[1735374845989,0.75944,3339.4,3339.3,0.29995]
[1735374846491,0.4595,3339.4,3338.8,2.47224301]
[1735374846694,0.29999,3339.0,3338.8,0.3]
[1735374846903,1.3541,3338.9,3338.8,0.3]
[1735374847797,0.3,3338.8,3338.7,3.2078]
[1735374848108,0.30003,3338.4,3338.3,4.70292642]
[1735374848294,0.30003,3338.4,3338.2,3.50785]
[1735374848295,2.34435301,3338.8,3338.2,3.50785]
[1735374848496,1.18964,3338.3,3338.2,3.50785]
[1735374848897,1.18964,3338.3,3338.2,3.2078]
[1735374849093,1.18964,3338.3,3338.2,3.50785]
[1735374849503,1.18964,3338.3,3338.2,0.30005]
[1735374849796,1.18964,3338.3,3337.9,0.4572]
[1735374849999,0.4417,3338.2,3338.1,0.30006]
[1735374850197,0.30006,3338.1,3337.8,3.50788]
[1735374850394,0.30008,3337.9,3337.8,3.2078]
[1735374852295,0.30009,3337.8,3337.6,0.3001]
[1735374852493,0.4417,3337.7,3337.6,0.3001]
[1735374855903,3.2078,3338.1,3337.9,0.30007]
[1735374856101,0.428,3338.0,3337.9,0.30007]
[1735374856598,0.72807,3338.0,3337.9,40.8]
[1735374857006,0.72807,3338.0,3337.9,41.10008]
[1735374857203,0.428,3338.0,3337.9,41.10008]
[1735374857905,0.72807,3338.0,3337.9,41.10008]
[1735374858102,0.72807,3338.0,3337.9,40.8]
[1735374860504,0.72807,3338.0,3337.9,41.10008]
[1735374861903,0.72807,3338.0,3337.9,0.30008]
[1735374862507,0.428,3338.0,3337.9,0.30008]
[1735374864905,3.2078,3338.1,3338.0,0.30007]
[1735374867511,0.4301,3338.3,3337.8,1.59434301]
[1735374867708,3.2078,3338.5,3337.9,0.8962]
[1735374867709,0.30004,3338.4,3337.9,0.8962]
[1735374868511,0.30004,3338.4,3338.0,0.30007]
[1735374868707,0.30004,3338.4,3338.2,0.30004]
[1735374869615,0.30004,3338.4,3338.3,0.30004]
[1735374870110,0.75064,3338.4,3338.3,0.30004]
[1735374870716,0.4506,3338.4,3338.0,0.457]
[1735374871020,0.30004,3338.3,3338.2,0.30005]
[1735374871214,0.4506,3338.4,3338.0,0.457]
[1735374871513,0.30005,3338.3,3338.2,0.30005]
[1735374873510,0.30005,3338.2,3338.1,0.30005]
[1735374875316,0.30005,3338.3,3338.2,0.30004]
[1735374876719,0.4506,3338.4,3338.3,0.30004]
[1735374877717,0.75063,3338.4,3338.3,0.30004]
[1735374878717,0.4506,3338.4,3337.8,0.4615]
[1735374878919,0.30006,3338.2,3338.1,0.30006]
[1735374879414,0.30006,3338.2,3337.8,0.4615]
[1735374879415,0.30008,3338.0,3337.9,0.30007]
[1735374880115,0.74318,3338.0,3337.9,0.30007]
[1735374880721,0.4431,3338.0,3337.9,0.30007]
[1735374895421,0.9004,3338.1,3337.8,4.70292642]
[1735374895621,4.69141112,3338.2,3338.1,0.30006]
[1735374895834,4.69141112,3338.2,3338.1,1.05549885]
[1735374897127,5.13641112,3338.3,3338.2,0.30005]
[1735374898226,0.445,3338.3,3338.2,0.30005]
[1735374901919,4.69141112,3338.4,3338.1,3.96323885]
[1735374902131,4.69141112,3338.5,3338.4,0.30003]
[1735374902528,4.69141112,3338.5,3338.4,1.17563]
[1735374902728,4.69141112,3338.5,3338.4,41.97563]
[1735374903632,4.69141112,3338.5,3338.4,46.97563]
[1735374903828,5.12711112,3339.1,3338.4,57.41792398]
[1735374904025,5.12711112,3339.1,3339.0,1.05541885]
[1735374905331,0.4357,3339.1,3339.0,1.05541885]
[1735374905631,5.60841112,3339.4,3339.3,0.29995]
[1735374906635,0.917,3339.4,3339.3,0.29995]
[1735374909137,1.21694,3339.4,3339.3,0.29995]
[1735374909727,0.917,3339.4,3339.3,0.29995]
[1735374912938,1.21694,3339.4,3339.3,0.29995]
[1735374913836,0.29997,3339.2,3339.1,0.29996]
[1735374914045,0.29995,3339.3,3339.1,0.29997]
[1735374914340,0.29997,3339.2,3339.1,0.29997]
[1735374914840,5.00641333,3339.2,3339.1,0.29997]
[1735374915035,0.3,3338.9,3338.8,0.29999]
[1735374916343,0.29999,3339.0,3338.9,0.29999]
[1735374916837,4.70644333,3339.1,3338.6,1.169]
[1735374917036,0.4605,3338.9,3338.8,0.3]
[1735374919846,3.2078,3339.2,3339.1,0.29997]
[1735374920148,0.4302,3339.3,3339.2,0.29996]
[1735374920339,0.4302,3339.3,3339.2,41.09996]
[1735374921246,0.4302,3339.3,3339.2,0.29996]
[1735374921842,0.73015,3339.3,3339.2,0.29996]
[1735374924051,0.4302,3339.3,3339.2,0.29996]
[1735374925645,3.2078,3339.5,3339.4,0.29994]
[1735374926550,0.29993,3339.6,3339.5,0.29994]
[1735374927050,5.14194333,3339.8,3339.2,0.4503]
[1735374927359,0.73541,3339.8,3339.7,0.29992]
[1735374927689,3.2078,3339.9,3339.8,0.29991]
[1735374928943,3.2078,3339.9,3339.8,41.09991]
[1735374929250,0.4655,3340.1,3340.0,0.29989]
[1735374931442,0.4655,3340.1,3339.5,8.90064]
[1735374931443,0.29989,3340.0,3339.9,0.29989]
[1735374931744,0.76539,3340.1,3339.9,0.29989]
[1735374933050,0.4655,3340.1,3340.0,0.29989]
[1735374934250,1.21008,3340.1,3340.0,0.29989]
[1735374934551,0.9102,3340.1,3340.0,0.29989]
[1735374971483,6.80153113,3340.1,3340.0,0.29989]
[1735374972781,0.9102,3340.1,3340.0,0.29989]
[1735374973175,0.9102,3340.1,3340.0,1.05446799]
[1735374979482,5.63269767,3340.1,3340.0,6.87712409]
[1735374981780,0.9102,3340.1,3340.0,13.93414704]
[1735374982585,5.15799767,3340.2,3340.1,0.29988]
[1735374982888,0.4355,3340.2,3340.1,0.29988]
[1735374983879,0.4355,3340.2,3340.1,3.50768]
[1735374984087,0.4355,3340.2,3340.1,16.83339539]
[1735374985483,0.4355,3340.2,3340.1,9.7636361]
[1735374985682,4.72249767,3340.4,3340.3,0.29986]
[1735374985900,4.72249767,3340.4,3340.3,1.05443799]
[1735374986786,6.04269767,3340.7,3340.6,0.29984]
[1735374986979,6.04269767,3340.7,3340.6,1.05441799]
[1735374987786,7.22332209,3340.7,3340.6,1.05441799]
[1735374988988,1.3202,3340.7,3340.6,1.05441799]
[1735374990286,7.22332209,3340.7,3340.6,1.05441799]
[1735374993490,4.7145697,3340.7,3340.6,1.05441799]
[1735374993684,0.38704279,3340.7,3340.6,11.75199598]
[1735374993982,5.22816686,3341.4,3341.3,5.24277]
[1735374994187,5.22816686,3341.4,3341.3,51.17314799]
[1735374994884,0.4649,3341.7,3341.6,0.29975]
[1735374995387,0.4496,3341.9,3341.5,0.75457799]
[1735374995587,0.4496,3341.9,3341.8,1.05430799]
[1735375008800,0.4389,3342.2,3342.1,0.2997]
[1735375009004,0.8907,3342.2,3342.1,1.05427799]
[1735375011003,0.8907,3342.2,3342.1,0.2997]
[1735375014208,0.8907,3342.2,3342.1,1.4677]
[1735375016104,0.8907,3342.2,3342.1,2.22227799]
[1735375020210,0.8907,3342.2,3342.1,5.43007799]
[1735375022399,0.8907,3342.2,3342.1,3.5075]
[1735375025506,0.8907,3342.2,3342.1,0.2997]
[1735375027616,1.64527799,3342.2,3341.6,3.2078]
[1735375027816,0.29971,3342.1,3341.8,0.29973]
[1735375028011,0.29971,3342.1,3341.7,0.75457799]
[1735375028012,0.29971,3342.1,3341.9,0.29972]
[1735375028212,0.29971,3342.1,3341.7,0.75457799]
[1735375028413,0.29971,3342.1,3341.9,0.29972]
[1735375029729,1.64527799,3342.2,3341.7,0.75457799]
[1735375029912,0.8907,3342.2,3341.9,0.75457799]
[1735375030116,0.8907,3342.2,3342.1,0.2997]
[1735375033322,1.64527799,3342.2,3341.6,3.2078]
[1735375033624,0.29973,3341.8,3341.7,0.29973]
[1735375033830,0.29973,3341.8,3341.6,3.2078]
[1735375034024,0.4662,3341.7,3341.6,3.50755]
[1735375034432,1.22077799,3341.7,3341.2,48.69754695]
[1735375034735,1.22077799,3341.7,3341.2,49.45212494]
[1735375034930,1.52051799,3341.7,3341.6,0.29975]
[1735375035233,0.4662,3341.7,3341.6,1.05432799]
[1735375035436,0.76594,3341.7,3341.6,0.29975]
[1735375036541,0.4662,3341.7,3341.6,0.29975]
[1735375037134,0.9295,3341.7,3341.6,0.29975]
[1735375037333,0.9295,3341.7,3341.6,1.05432799]
[1735375037833,1.22924,3341.7,3341.6,1.05432799]
[1735375038142,1.22924,3341.7,3341.6,0.29975]
[1735375038327,1.22924,3341.7,3341.2,44.0078]
[1735375038328,0.29975,3341.6,3341.5,0.29975]
[1735375039635,1.22924,3341.7,3341.6,0.29975]
[1735375040035,0.9295,3341.7,3341.6,0.29975]
[1735375040236,1.22924,3341.7,3341.6,0.29975]
[1735375041340,0.9295,3341.7,3341.6,0.29975]
[1735375042635,0.4281,3341.8,3341.5,0.75457799]
[1735375042834,0.4251,3342.4,3341.7,0.75457799]
[1735375043140,0.4251,3342.4,3342.3,0.29968]
[1735375043639,3.2078,3342.5,3342.2,0.75457799]
[1735375043932,3.2078,3342.5,3342.4,1.05425799]
[1735375045636,0.29969,3342.3,3342.1,4.98944695]
[1735375045847,0.4504,3342.2,3342.1,4.98944695]
[1735375046040,0.8982,3342.2,3342.1,4.98944695]
[1735375046642,0.8982,3342.2,3342.1,0.2997]
[1735375047142,1.3552,3342.2,3342.1,0.2997]
[1735375048342,1.3552,3342.2,3341.8,0.4521]
[1735375048538,0.2997,3342.1,3341.9,0.29971]
[1735375049236,1.3552,3342.2,3341.8,0.4521]
[1735375049441,0.457,3342.2,3342.1,0.2997]
[1735375055045,3.2078,3342.6,3341.9,1.59213576]
[1735375055248,3.2078,3342.6,3342.5,0.29967]
[1735375057242,1.20114,3342.8,3342.7,0.29965]
[1735375057443,0.9015,3342.8,3342.7,0.29965]
[1735375058148,0.4434,3342.8,3342.7,0.29965]
[1735375058348,0.74304,3342.8,3342.7,0.29965]
[1735375064049,0.4434,3342.8,3342.3,0.4454]
[1735375064249,0.29965,3342.7,3342.6,0.29965]
[1735375065354,0.4434,3342.8,3342.3,0.4454]
[1735375065558,0.74304,3342.8,3342.7,0.29965]
[1735375069558,0.4434,3342.8,3342.3,0.4454]
[1735375069759,0.29965,3342.7,3342.6,0.29965]
[1735375070452,0.74485,3342.7,3342.6,0.29965]
[1735375072757,0.4452,3342.7,3342.6,0.29965]
[1735375073056,0.74485,3342.7,3342.6,0.29965]
[1735375075561,0.29968,3342.5,3342.4,0.29967]
[1735375081458,0.73276,3342.6,3342.5,0.29967]
[1735375081661,0.29968,3342.5,3342.4,0.29967]
[1735375082065,0.4331,3342.6,3342.3,1.22278548]
[1735375082266,0.73276,3342.6,3342.5,0.29967]
[1735375083271,0.29968,3342.3,3342.2,3.2078]
[1735375083472,0.29968,3342.4,3342.2,3.50749]
[1735375083663,0.4641,3342.3,3342.2,3.50749]
[1735375083863,0.9242,3342.3,3342.2,3.50749]
[1735375084166,1.22388,3342.3,3342.2,3.50749]
[1735375085574,0.9242,3342.3,3342.2,3.50749]
[1735375085777,0.9242,3342.3,3342.2,3.95969]
[1735375087171,0.9242,3342.3,3342.2,0.75189]
[1735375087572,3.6409,3342.6,3342.2,0.75189]
[1735375087773,3.6409,3342.6,3342.5,0.29967]
[1735375089874,3.94056,3342.6,3342.5,0.29967]
[1735375093478,0.29968,3342.5,3342.4,0.29967]
[1735375097182,3.50746,3342.6,3342.5,0.29967]
[1735375097478,3.50746,3342.6,3342.5,0.73047]
[1735375099486,0.29966,3342.6,3342.5,0.73047]
[1735375104589,0.29966,3342.6,3342.5,0.4308]
[1735375106789,0.29966,3342.6,3342.5,0.73047]
[1735375107293,0.29966,3342.6,3342.5,0.4308]
[1735375109896,0.29968,3342.4,3342.3,5.74291243]
[1735375110298,0.4328,3342.5,3342.3,5.44323243]
[1735375110592,0.29968,3342.4,3342.3,5.74291243]
[1735375114890,0.29968,3342.4,3342.3,1.05316548]
[1735375117196,0.73247,3342.5,3342.4,0.29968]
[1735375119893,0.4328,3342.5,3342.4,0.29968]
[1735375120095,0.29966,3342.6,3342.5,0.29966]
[1735375120296,0.29966,3342.6,3342.5,1.05314548]
[1735375122191,0.29966,3342.6,3342.5,5.74289243]
[1735375122401,4.0996,3342.9,3342.5,5.44323243]
[1735375122598,4.0996,3342.9,3342.8,0.29964]
[1735375124402,4.39923,3342.9,3342.8,0.29964]
[1735375128498,4.0996,3342.9,3342.8,0.29964]
[1735375129002,4.39923,3342.9,3342.8,0.29964]
[1735375129499,3.6572,3342.9,3342.8,0.29964]
[1735375129807,3.2078,3342.9,3342.8,0.29964]
[1735375132707,0.4364,3343.0,3342.9,0.29963]
[1735375135303,0.73602,3343.0,3342.9,1.05311548]
[1735375141312,0.73602,3343.0,3342.9,0.29963]
[1735375142013,0.73602,3343.0,3342.9,1.05311548]
[1735375142214,0.4364,3343.0,3342.9,1.05311548]
[1735375143216,0.73602,3343.0,3342.9,1.05311548]
[1735375143815,0.4364,3343.0,3342.9,1.05311548]
[1735375144923,0.73602,3343.0,3342.9,1.05311548]
[1735375145113,0.29964,3342.9,3342.8,0.29963]
[1735375145320,1.18164,3342.9,3342.8,0.29963]
[1735375147021,0.882,3342.9,3342.8,0.29963]
[1735375150224,0.4537,3342.9,3342.8,0.29963]
[1735375150920,0.4537,3342.9,3342.8,41.09963]